[Event "December 19 Late 2023"]
[Site "https://www.chess.com"]
[Date "2023.12.19"]
[Round "3"]
[White "Bjelobrk, Igor"]
[Black "Bellissimo, Joseph F."]
[Result "1-0"]
[Board "71"]
[TimeControl "180+1"]
[WhiteFideId "4300726"]
[BlackFideId "2609843"]
[WhiteElo "2319"]
[BlackElo "2103"]
[WhiteTeam "AUS"]
[BlackTeam "CAN"]
[WhiteClock "0:01:45"]
[BlackClock "0:00:50"]

1. d4 {[%clk 0:03:00]}  Nf6 {[%clk 0:02:59]} 2. c4 {[%clk 0:03:00]}  e6 {[%clk 0:03:00]} 3. g3 {[%clk 0:03:00]}  d5 {[%clk 0:03:00]} 4. Bg2 {[%clk 0:02:59]}  Bb4+ {[%clk 0:03:00]} 5. Bd2 {[%clk 0:02:58]}  Be7 {[%clk 0:03:00]} 6. Nf3 {[%clk 0:02:58]}  O-O {[%clk 0:03:01]} 7. O-O {[%clk 0:02:57]}  c6 {[%clk 0:03:00]} 8. Qc2 {[%clk 0:02:57]}  b6 {[%clk 0:03:00]} 9. Rd1 {[%clk 0:02:56]}  Nbd7 {[%clk 0:03:00]} 10. b3 {[%clk 0:02:55]}  Ba6 {[%clk 0:03:00]} 11. Bc1 {[%clk 0:02:55]}  Rc8 {[%clk 0:03:00]} 12. Bb2 {[%clk 0:02:55]}  c5 {[%clk 0:03:00]} 13. Nc3 {[%clk 0:02:54]}  dxc4 {[%clk 0:02:56]} 14. d5 {[%clk 0:02:54]}  exd5 {[%clk 0:02:49]} 15. Nxd5 {[%clk 0:02:54]}  cxb3 {[%clk 0:02:49]} 16. axb3 {[%clk 0:02:53]}  Bb7 {[%clk 0:02:39]} 17. Nxf6+ {[%clk 0:02:45]}  Bxf6 {[%clk 0:02:39]} 18. Rxa7 {[%clk 0:02:44]}  Qc7 {[%clk 0:02:33]} 19. Rxb7 {[%clk 0:02:37]}  Qxb7 {[%clk 0:02:31]} 20. Ng5 {[%clk 0:02:37]}  Qxg2+ {[%clk 0:02:31]} 21. Kxg2 {[%clk 0:02:37]}  Bxg5 {[%clk 0:02:31]} 22. Rxd7 {[%clk 0:02:37]}  Rc6 {[%clk 0:02:24]} 23. Qf5 {[%clk 0:02:32]}  Bf6 {[%clk 0:02:23]} 24. Qd5 {[%clk 0:02:27]}  Re6 {[%clk 0:02:22]} 25. Bxf6 {[%clk 0:02:26]}  Rxf6 {[%clk 0:02:23]} 26. e4 {[%clk 0:02:26]}  Re8 {[%clk 0:02:22]} 27. f4 {[%clk 0:02:24]}  g6 {[%clk 0:02:21]} 28. e5 {[%clk 0:02:24]}  Rfe6 {[%clk 0:02:21]} 29. Rd6 {[%clk 0:02:19]}  Kg7 {[%clk 0:02:19]} 30. Rxe6 {[%clk 0:02:19]}  Rxe6 {[%clk 0:02:20]} 31. Kf3 {[%clk 0:02:18]}  h5 {[%clk 0:02:20]} 32. h3 {[%clk 0:02:18]}  Kf8 {[%clk 0:02:07]} 33. g4 {[%clk 0:02:17]}  hxg4+ {[%clk 0:02:07]} 34. hxg4 {[%clk 0:02:17]}  Kg7 {[%clk 0:02:03]} 35. f5 {[%clk 0:02:17]}  gxf5 {[%clk 0:02:04]} 36. gxf5 {[%clk 0:02:17]}  Rh6 {[%clk 0:02:04]} 37. Kg4 {[%clk 0:02:12]}  Kf8 {[%clk 0:01:58]} 38. Qd8+ {[%clk 0:02:11]}  Kg7 {[%clk 0:01:57]} 39. f6+ {[%clk 0:02:11]}  Kh7 {[%clk 0:01:55]} 40. Qxb6 {[%clk 0:02:11]}  Rg6+ {[%clk 0:01:50]} 41. Kf5 {[%clk 0:02:11]}  Rg1 {[%clk 0:01:49]} 42. Qxc5 {[%clk 0:02:10]}  Rf1+ {[%clk 0:01:43]} 43. Kg5 {[%clk 0:02:11]}  Kg8 {[%clk 0:01:42]} 44. b4 {[%clk 0:02:10]}  Rf3 {[%clk 0:01:36]} 45. b5 {[%clk 0:02:09]}  Rb3 {[%clk 0:01:25]} 46. b6 {[%clk 0:02:09]}  Rb1 {[%clk 0:01:25]} 47. b7 {[%clk 0:02:09]}  Rb3 {[%clk 0:01:16]} 48. Qc8+ {[%clk 0:02:07]}  Kh7 {[%clk 0:01:16]} 49. Qc7 {[%clk 0:01:57]}  Rg3+ {[%clk 0:00:53]} 50. Kf4 {[%clk 0:01:56]}  Rg1 {[%clk 0:00:53]} 51. Qxf7+ {[%clk 0:01:55]}  Kh6 {[%clk 0:00:53]} 52. Qg7+ {[%clk 0:01:54]}  Rxg7 {[%clk 0:00:51]} 53. fxg7 {[%clk 0:01:55]}  Kh7 {[%clk 0:00:50]} 54. b8=Q {[%clk 0:01:54]}  Kxg7 {[%clk 0:00:50]} 55. Qb6 {[%clk 0:01:53]}  Kf7 {[%clk 0:00:50]} 56. Kf5 {[%clk 0:01:53]}  Kg8 {[%clk 0:00:50]} 57. Kg6 {[%clk 0:01:45]}  Kf8 {[%clk 0:00:50]} 58. Qd8# {[%clk 0:01:45]} 1-0

[Event "December 19 Late 2023"]
[Site "https://www.chess.com"]
[Date "2023.12.19"]
[Round "3"]
[White "Mazurkiewicz, Michal"]
[Black "Manolache, Marius"]
[Result "0-1"]
[Board "72"]
[TimeControl "180+1"]
[WhiteFideId "1124943"]
[BlackFideId "1201530"]
[WhiteElo "2103"]
[BlackElo "2364"]
[WhiteTeam "POL"]
[BlackTeam "ROU"]
[WhiteClock "0:00:00"]
[BlackClock "0:01:53"]

1. e4 {[%clk 0:02:59]}  c5 {[%clk 0:02:59]} 2. Nf3 {[%clk 0:03:00]}  e6 {[%clk 0:03:00]} 3. d3 {[%clk 0:03:00]}  Nc6 {[%clk 0:02:59]} 4. g3 {[%clk 0:03:00]}  Nf6 {[%clk 0:02:59]} 5. Bg2 {[%clk 0:03:00]}  Be7 {[%clk 0:02:59]} 6. O-O {[%clk 0:03:00]}  O-O {[%clk 0:02:59]} 7. e5 {[%clk 0:03:00]}  Nd5 {[%clk 0:02:59]} 8. c4 {[%clk 0:02:59]}  Nb6 {[%clk 0:02:59]} 9. b3 {[%clk 0:02:48]}  d6 {[%clk 0:02:57]} 10. exd6 {[%clk 0:02:48]}  Bf6 {[%clk 0:02:56]} 11. d4 {[%clk 0:02:46]}  Nxd4 {[%clk 0:02:56]} 12. Nc3 {[%clk 0:02:21]}  Qxd6 {[%clk 0:02:51]} 13. Ne4 {[%clk 0:02:18]}  Qe7 {[%clk 0:02:51]} 14. Nxf6+ {[%clk 0:02:17]}  Qxf6 {[%clk 0:02:52]} 15. Ba3 {[%clk 0:01:52]}  Nxf3+ {[%clk 0:02:46]} 16. Qxf3 {[%clk 0:01:43]}  Qxf3 {[%clk 0:02:42]} 17. Bxf3 {[%clk 0:01:44]}  Nd7 {[%clk 0:02:42]} 18. Rad1 {[%clk 0:01:19]}  Rb8 {[%clk 0:02:42]} 19. Rfe1 {[%clk 0:01:20]}  b6 {[%clk 0:02:42]} 20. b4 {[%clk 0:01:20]}  cxb4 {[%clk 0:02:28]} 21. Bxb4 {[%clk 0:01:20]}  Nc5 {[%clk 0:02:28]} 22. Rd6 {[%clk 0:01:19]}  Bb7 {[%clk 0:02:26]} 23. Bxb7 {[%clk 0:01:15]}  Nxb7 {[%clk 0:02:26]} 24. Rd7 {[%clk 0:01:13]}  Rfc8 {[%clk 0:02:24]} 25. Red1 {[%clk 0:01:00]}  a5 {[%clk 0:02:22]} 26. Ba3 {[%clk 0:00:54]}  h6 {[%clk 0:02:21]} 27. Re7 {[%clk 0:00:50]}  Nc5 {[%clk 0:02:21]} 28. f4 {[%clk 0:00:20]}  Rd8 {[%clk 0:02:11]} 29. Rxd8+ {[%clk 0:00:19]}  Rxd8 {[%clk 0:02:11]} 30. Bxc5 {[%clk 0:00:19]}  bxc5 {[%clk 0:02:11]} 31. Rc7 {[%clk 0:00:17]}  Rd2 {[%clk 0:02:11]} 32. Rxc5 {[%clk 0:00:16]}  Rxa2 {[%clk 0:02:11]} 33. Rc7 {[%clk 0:00:16]}  a4 {[%clk 0:02:11]} 34. Ra7 {[%clk 0:00:16]}  a3 {[%clk 0:02:07]} 35. c5 {[%clk 0:00:16]}  Rc2 {[%clk 0:02:01]} 36. Rxa3 {[%clk 0:00:16]}  Rxc5 {[%clk 0:02:01]} 37. Ra7 {[%clk 0:00:16]}  Rc2 {[%clk 0:02:01]} 38. Rb7 {[%clk 0:00:16]}  g6 {[%clk 0:02:01]} 39. Ra7 {[%clk 0:00:15]}  Kg7 {[%clk 0:02:01]} 40. Rb7 {[%clk 0:00:15]}  g5 {[%clk 0:02:02]} 41. fxg5 {[%clk 0:00:14]}  hxg5 {[%clk 0:02:02]} 42. Ra7 {[%clk 0:00:13]}  g4 {[%clk 0:02:02]} 43. Ra4 {[%clk 0:00:13]}  f5 {[%clk 0:02:03]} 44. Ra8 {[%clk 0:00:10]}  Kf6 {[%clk 0:02:03]} 45. Ra5 {[%clk 0:00:09]}  Rd2 {[%clk 0:02:03]} 46. Rb5 {[%clk 0:00:08]}  Ke7 {[%clk 0:02:03]} 47. Ra5 {[%clk 0:00:08]}  Kd6 {[%clk 0:02:03]} 48. Rb5 {[%clk 0:00:07]}  Rc2 {[%clk 0:02:01]} 49. Ra5 {[%clk 0:00:07]}  Rc5 {[%clk 0:02:01]} 50. Ra8 {[%clk 0:00:05]}  Ke5 {[%clk 0:02:02]} 51. Ra4 {[%clk 0:00:04]}  Rd5 {[%clk 0:02:01]} 52. Ra1 {[%clk 0:00:04]}  Rd4 {[%clk 0:02:00]} 53. Re1+ {[%clk 0:00:04]}  Re4 {[%clk 0:02:00]} 54. Ra1 {[%clk 0:00:04]}  Rd4 {[%clk 0:01:53]} 55. Re1+ {[%clk 0:00:04]}  Kd5 {[%clk 0:01:53]} 56. Ra1 {[%clk 0:00:05]}  e5 {[%clk 0:01:53]} 57. Ra5+ {[%clk 0:00:05]}  Ke4 {[%clk 0:01:53]} 58. Ra1 {[%clk 0:00:06]}  Rd3 {[%clk 0:01:53]} 59. Re1+ {[%clk 0:00:06]}  Re3 {[%clk 0:01:53]} 60. Ra1 {[%clk 0:00:07]}  Re2 {[%clk 0:01:53]} 61. Rf1 {[%clk 0:00:06]}  f4 {[%clk 0:01:52]} 62. gxf4 {[%clk 0:00:07]}  exf4 {[%clk 0:01:52]} 63. Ra1 {[%clk 0:00:07]}  f3 {[%clk 0:01:53]} 64. Ra4+ {[%clk 0:00:07]}  Kf5 {[%clk 0:01:53]} 65. Ra5+ {[%clk 0:00:07]}  Kf4 {[%clk 0:01:53]} 66. Ra4+ {[%clk 0:00:07]}  Kg5 {[%clk 0:01:54]} 67. Ra5+ {[%clk 0:00:08]}  Kh4 {[%clk 0:01:54]} 68. Ra8 {[%clk 0:00:08]}  Rg2+ {[%clk 0:01:52]} 69. Kh1 {[%clk 0:00:07]}  Kg5 {[%clk 0:01:52]} 70. Rg8+ {[%clk 0:00:07]}  Kf4 {[%clk 0:01:53]} 71. Rf8+ {[%clk 0:00:07]}  Ke3 {[%clk 0:01:53]} 72. Re8+ {[%clk 0:00:08]}  Kf2 {[%clk 0:01:53]} 73. h4 {[%clk 0:00:00]}  Rg3 {[%clk 0:01:53]} 0-1

[Event "December 19 Late 2023"]
[Site "https://www.chess.com"]
[Date "2023.12.19"]
[Round "3"]
[White "Gutierrez Olivares, Daniel"]
[Black "Chaika, Vitalii"]
[Result "0-1"]
[Board "73"]
[TimeControl "180+1"]
[WhiteFideId "2264005"]
[BlackFideId "14111802"]
[WhiteElo "2317"]
[BlackElo "2010"]
[WhiteTeam "ESP"]
[BlackTeam "UKR"]
[WhiteClock "0:00:42"]
[BlackClock "0:01:15"]

1. Nf3 {[%clk 0:02:55]}  d6 {[%clk 0:02:57]} 2. g3 {[%clk 0:02:56]}  e5 {[%clk 0:02:55]} 3. d3 {[%clk 0:02:56]}  Nf6 {[%clk 0:02:54]} 4. Bg2 {[%clk 0:02:47]}  Be7 {[%clk 0:02:53]} 5. c4 {[%clk 0:02:47]}  Nbd7 {[%clk 0:02:52]} 6. Nc3 {[%clk 0:02:46]}  c6 {[%clk 0:02:52]} 7. Rb1 {[%clk 0:02:45]}  a5 {[%clk 0:02:50]} 8. a3 {[%clk 0:02:44]}  O-O {[%clk 0:02:47]} 9. b4 {[%clk 0:02:44]}  axb4 {[%clk 0:02:46]} 10. axb4 {[%clk 0:02:45]}  d5 {[%clk 0:02:43]} 11. cxd5 {[%clk 0:02:26]}  cxd5 {[%clk 0:02:44]} 12. Qb3 {[%clk 0:01:58]}  d4 {[%clk 0:02:35]} 13. Nd5 {[%clk 0:01:56]}  Bd6 {[%clk 0:02:28]} 14. Bg5 {[%clk 0:01:53]}  h6 {[%clk 0:02:24]} 15. Bd2 {[%clk 0:01:43]}  Nxd5 {[%clk 0:02:19]} 16. Qxd5 {[%clk 0:01:42]}  Nf6 {[%clk 0:02:19]} 17. Qb3 {[%clk 0:01:30]}  Be6 {[%clk 0:02:18]} 18. Qd1 {[%clk 0:01:30]}  Nd5 {[%clk 0:02:12]} 19. O-O {[%clk 0:01:28]}  Qe7 {[%clk 0:02:11]} 20. b5 {[%clk 0:01:26]}  Rfc8 {[%clk 0:02:07]} 21. Qe1 {[%clk 0:01:19]}  Ra2 {[%clk 0:02:00]} 22. Rc1 {[%clk 0:01:12]}  Rcc2 {[%clk 0:01:43]} 23. Rxc2 {[%clk 0:01:08]}  Rxc2 {[%clk 0:01:43]} 24. Qb1 {[%clk 0:01:03]}  Qc7 {[%clk 0:01:36]} 25. Rc1 {[%clk 0:01:03]}  Rxc1+ {[%clk 0:01:30]} 26. Qxc1 {[%clk 0:00:54]}  Qxc1+ {[%clk 0:01:27]} 27. Bxc1 {[%clk 0:00:54]}  Nc3 {[%clk 0:01:27]} 28. e3 {[%clk 0:00:47]}  Ne2+ {[%clk 0:01:25]} 29. Kf1 {[%clk 0:00:45]}  Nxc1 {[%clk 0:01:24]} 30. exd4 {[%clk 0:00:46]}  Nxd3 {[%clk 0:01:19]} 31. dxe5 {[%clk 0:00:45]}  Nxe5 {[%clk 0:01:16]} 32. Nxe5 {[%clk 0:00:46]}  Bxe5 {[%clk 0:01:15]} 33. Bxb7 {[%clk 0:00:47]}  Bc4+ {[%clk 0:01:15]} 34. Kg2 {[%clk 0:00:42]}  Bxb5 {[%clk 0:01:15]} 0-1

[Event "December 19 Late 2023"]
[Site "https://www.chess.com"]
[Date "2023.12.19"]
[Round "3"]
[White "Ehlvest, Jaan"]
[Black "Kovacsy, Barnabas"]
[Result "0-1"]
[Board "75"]
[TimeControl "180+1"]
[WhiteFideId "4500016"]
[BlackFideId "769290"]
[WhiteElo "2452"]
[BlackElo "2130"]
[WhiteTeam "USA"]
[BlackTeam "HUN"]
[WhiteClock "0:00:42"]
[BlackClock "0:00:54"]

1. e4 {[%clk 0:02:55]}  c5 {[%clk 0:03:00]} 2. Nf3 {[%clk 0:02:55]}  e6 {[%clk 0:03:00]} 3. d4 {[%clk 0:02:54]}  cxd4 {[%clk 0:03:01]} 4. Nxd4 {[%clk 0:02:54]}  Nc6 {[%clk 0:03:02]} 5. Nc3 {[%clk 0:02:54]}  Qc7 {[%clk 0:03:02]} 6. Be3 {[%clk 0:02:54]}  a6 {[%clk 0:03:02]} 7. a3 {[%clk 0:02:49]}  b5 {[%clk 0:03:01]} 8. Nxc6 {[%clk 0:02:43]}  dxc6 {[%clk 0:03:01]} 9. Qg4 {[%clk 0:02:29]}  Nf6 {[%clk 0:03:00]} 10. Qg3 {[%clk 0:02:28]}  Qxg3 {[%clk 0:03:01]} 11. hxg3 {[%clk 0:02:28]}  e5 {[%clk 0:03:01]} 12. f3 {[%clk 0:02:23]}  Be6 {[%clk 0:03:01]} 13. a4 {[%clk 0:02:14]}  Rc8 {[%clk 0:03:01]} 14. g4 {[%clk 0:02:06]}  Nd7 {[%clk 0:02:58]} 15. g5 {[%clk 0:02:04]}  Bc5 {[%clk 0:02:54]} 16. Kf2 {[%clk 0:02:02]}  Ke7 {[%clk 0:02:32]} 17. axb5 {[%clk 0:01:51]}  axb5 {[%clk 0:02:31]} 18. Bxc5+ {[%clk 0:01:51]}  Nxc5 {[%clk 0:02:31]} 19. b4 {[%clk 0:01:51]}  Nd7 {[%clk 0:02:21]} 20. Bd3 {[%clk 0:01:45]}  Rc7 {[%clk 0:02:13]} 21. g3 {[%clk 0:01:44]}  f6 {[%clk 0:02:10]} 22. gxf6+ {[%clk 0:01:42]}  Nxf6 {[%clk 0:02:09]} 23. Nd1 {[%clk 0:01:38]}  h6 {[%clk 0:02:08]} 24. Ne3 {[%clk 0:01:35]}  Rd8 {[%clk 0:02:03]} 25. Ke2 {[%clk 0:01:31]}  Rdd7 {[%clk 0:01:47]} 26. Ra6 {[%clk 0:01:28]}  Ne8 {[%clk 0:01:21]} 27. f4 {[%clk 0:01:23]}  Nd6 {[%clk 0:01:10]} 28. Rh5 {[%clk 0:01:15]}  exf4 {[%clk 0:01:05]} 29. gxf4 {[%clk 0:01:15]}  Nc4 {[%clk 0:00:58]} 30. f5 {[%clk 0:00:53]}  Bf7 {[%clk 0:00:55]} 31. Bxc4 {[%clk 0:00:42]}  Bxh5+ {[%clk 0:00:54]} 0-1

[Event "December 19 Late 2023"]
[Site "https://www.chess.com"]
[Date "2023.12.19"]
[Round "3"]
[White "Golubev, Mikhail"]
[Black "Sivakumar, Shaashwath"]
[Result "1-0"]
[Board "77"]
[TimeControl "180+1"]
[WhiteFideId "14100983"]
[BlackFideId "30912156"]
[WhiteElo "2352"]
[BlackElo "2137"]
[WhiteTeam "UKR"]
[BlackTeam "USA"]
[WhiteClock "0:00:36"]
[BlackClock "0:00:00"]

1. e4 {[%clk 0:03:00]}  c5 {[%clk 0:02:58]} 2. Nf3 {[%clk 0:03:00]}  d6 {[%clk 0:02:59]} 3. d4 {[%clk 0:03:00]}  cxd4 {[%clk 0:02:59]} 4. Nxd4 {[%clk 0:03:01]}  Nf6 {[%clk 0:02:59]} 5. Nc3 {[%clk 0:03:01]}  a6 {[%clk 0:03:00]} 6. Bc4 {[%clk 0:03:01]}  e6 {[%clk 0:02:56]} 7. O-O {[%clk 0:03:02]}  Nbd7 {[%clk 0:02:56]} 8. Bxe6 {[%clk 0:02:57]}  fxe6 {[%clk 0:02:52]} 9. Nxe6 {[%clk 0:02:58]}  Qb6 {[%clk 0:02:50]} 10. Nd5 {[%clk 0:02:53]}  Nxd5 {[%clk 0:02:47]} 11. exd5 {[%clk 0:02:53]}  Nc5 {[%clk 0:02:05]} 12. Ng5 {[%clk 0:02:49]}  Be7 {[%clk 0:01:03]} 13. Qf3 {[%clk 0:01:48]}  Rf8 {[%clk 0:00:22]} 14. Qh5+ {[%clk 0:01:45]}  Kd8 {[%clk 0:00:21]} 15. Nf7+ {[%clk 0:01:13]}  Kc7 {[%clk 0:00:20]} 16. Re1 {[%clk 0:01:13]}  Bf6 {[%clk 0:00:18]} 17. Bf4 {[%clk 0:01:11]}  g6 {[%clk 0:00:15]} 18. Qxh7 {[%clk 0:01:09]}  Kb8 {[%clk 0:00:12]} 19. Bxd6+ {[%clk 0:01:06]}  Ka7 {[%clk 0:00:13]} 20. Bxf8 {[%clk 0:01:03]}  Bf5 {[%clk 0:00:12]} 21. Bg7 {[%clk 0:00:46]}  Ne4 {[%clk 0:00:09]} 22. Re3 {[%clk 0:00:41]}  Bxg7 {[%clk 0:00:07]} 23. Qxg7 {[%clk 0:00:41]}  Re8 {[%clk 0:00:00]} 24. Rae1 {[%clk 0:00:36]} 1-0

[Event "December 19 Late 2023"]
[Site "https://www.chess.com"]
[Date "2023.12.19"]
[Round "3"]
[White "Melian, Juan Sebastian"]
[Black "Sroczynski, Maciej"]
[Result "1-0"]
[Board "78"]
[TimeControl "180+1"]
[WhiteFideId "3706575"]
[BlackFideId "1121472"]
[WhiteElo "2098"]
[BlackElo "2266"]
[WhiteTeam "PAR"]
[BlackTeam "POL"]
[WhiteClock "0:01:37"]
[BlackClock "0:01:56"]

1. e4 {[%clk 0:03:00]}  c5 {[%clk 0:02:59]} 2. Nf3 {[%clk 0:02:55]}  d6 {[%clk 0:02:59]} 3. Bb5+ {[%clk 0:02:47]}  Bd7 {[%clk 0:02:58]} 4. Bxd7+ {[%clk 0:02:47]}  Qxd7 {[%clk 0:02:59]} 5. c4 {[%clk 0:02:48]}  Nc6 {[%clk 0:02:59]} 6. O-O {[%clk 0:02:48]}  Nf6 {[%clk 0:02:55]} 7. Nc3 {[%clk 0:02:47]}  e6 {[%clk 0:02:49]} 8. d4 {[%clk 0:02:47]}  cxd4 {[%clk 0:02:49]} 9. Nxd4 {[%clk 0:02:48]}  Be7 {[%clk 0:02:49]} 10. Be3 {[%clk 0:02:48]}  O-O {[%clk 0:02:48]} 11. Qe2 {[%clk 0:02:48]}  Rac8 {[%clk 0:02:44]} 12. Rac1 {[%clk 0:02:39]}  a6 {[%clk 0:02:39]} 13. Rfd1 {[%clk 0:02:19]}  Nxd4 {[%clk 0:02:38]} 14. Bxd4 {[%clk 0:02:20]}  Qc6 {[%clk 0:02:36]} 15. b3 {[%clk 0:01:58]}  Rfd8 {[%clk 0:02:34]} 16. a4 {[%clk 0:01:56]}  Nd7 {[%clk 0:02:25]} 17. Rd3 {[%clk 0:01:46]}  Nc5 {[%clk 0:02:21]} 18. Rg3 {[%clk 0:01:45]}  g6 {[%clk 0:02:11]} 19. Qh5 {[%clk 0:01:43]}  Nxb3 {[%clk 0:02:03]} 20. Qxh7+ {[%clk 0:01:38]}  Kxh7 {[%clk 0:01:56]} 21. Rh3+ {[%clk 0:01:37]}  Kg8 {[%clk 0:01:56]} 22. Rh8# {[%clk 0:01:37]} 1-0

[Event "December 19 Late 2023"]
[Site "https://www.chess.com"]
[Date "2023.12.19"]
[Round "3"]
[White "Melikhov, Evgeny V."]
[Black "Principe, Gerson"]
[Result "0-1"]
[Board "79"]
[TimeControl "180+1"]
[WhiteFideId "4122046"]
[BlackFideId "3804550"]
[WhiteElo "2165"]
[BlackElo "2186"]
[WhiteTeam "GRE"]
[BlackTeam "PER"]
[WhiteClock "0:00:04"]
[BlackClock "0:01:11"]

1. d4 {[%clk 0:03:00]}  Nf6 {[%clk 0:02:59]} 2. c4 {[%clk 0:03:00]}  e6 {[%clk 0:02:59]} 3. Nc3 {[%clk 0:03:01]}  Bb4 {[%clk 0:02:59]} 4. Qc2 {[%clk 0:03:01]}  d5 {[%clk 0:02:59]} 5. cxd5 {[%clk 0:03:01]}  exd5 {[%clk 0:02:58]} 6. Bg5 {[%clk 0:03:01]}  Nbd7 {[%clk 0:02:58]} 7. e3 {[%clk 0:02:58]}  c5 {[%clk 0:02:58]} 8. dxc5 {[%clk 0:02:47]}  Nxc5 {[%clk 0:02:41]} 9. Bb5+ {[%clk 0:02:46]}  Bd7 {[%clk 0:02:40]} 10. Bxd7+ {[%clk 0:02:45]}  Ncxd7 {[%clk 0:02:35]} 11. Ne2 {[%clk 0:02:42]}  O-O {[%clk 0:02:30]} 12. O-O {[%clk 0:02:40]}  Rc8 {[%clk 0:02:29]} 13. Qf5 {[%clk 0:02:18]}  Be7 {[%clk 0:02:10]} 14. Rfd1 {[%clk 0:02:00]}  Rc5 {[%clk 0:01:58]} 15. Nd4 {[%clk 0:01:53]}  Ne4 {[%clk 0:01:41]} 16. Bxe7 {[%clk 0:01:49]}  Qxe7 {[%clk 0:01:23]} 17. Nxd5 {[%clk 0:01:46]}  Qe8 {[%clk 0:01:12]} 18. b4 {[%clk 0:00:04]}  g6 {[%clk 0:01:11]} 0-1

[Event "December 19 Late 2023"]
[Site "https://www.chess.com"]
[Date "2023.12.19"]
[Round "3"]
[White "Omelja, Artem"]
[Black "Kazmaier, Daniel"]
[Result "0-1"]
[Board "80"]
[TimeControl "180+1"]
[WhiteFideId "14119846"]
[BlackFideId "2606089"]
[WhiteElo "2404"]
[BlackElo "2447"]
[WhiteTeam "UKR"]
[BlackTeam "CAN"]
[WhiteClock "0:02:12"]
[BlackClock "0:00:38"]

1. d4 {[%clk 0:02:56]}  f5 {[%clk 0:02:55]} 2. Nc3 {[%clk 0:02:55]}  Nf6 {[%clk 0:02:55]} 3. Bf4 {[%clk 0:02:55]}  e6 {[%clk 0:02:52]} 4. g4 {[%clk 0:02:53]}  fxg4 {[%clk 0:02:51]} 5. e4 {[%clk 0:02:53]}  d6 {[%clk 0:02:49]} 6. h3 {[%clk 0:02:51]}  g3 {[%clk 0:02:47]} 7. Bxg3 {[%clk 0:02:50]}  Be7 {[%clk 0:02:30]} 8. Nge2 {[%clk 0:02:46]}  O-O {[%clk 0:02:28]} 9. Bg2 {[%clk 0:02:47]}  Nc6 {[%clk 0:02:27]} 10. O-O {[%clk 0:02:41]}  e5 {[%clk 0:02:26]} 11. f4 {[%clk 0:02:40]}  Nh5 {[%clk 0:02:15]} 12. Bh2 {[%clk 0:02:39]}  exf4 {[%clk 0:01:57]} 13. Nxf4 {[%clk 0:02:39]}  Nxf4 {[%clk 0:01:55]} 14. Bxf4 {[%clk 0:02:40]}  Bg5 {[%clk 0:01:55]} 15. Bxg5 {[%clk 0:02:36]}  Rxf1+ {[%clk 0:01:56]} 16. Qxf1 {[%clk 0:02:36]}  Qxg5 {[%clk 0:01:56]} 17. Qf2 {[%clk 0:02:36]}  Bxh3 {[%clk 0:01:38]} 18. Rf1 {[%clk 0:02:36]}  Qxg2+ {[%clk 0:01:35]} 19. Qxg2 {[%clk 0:02:36]}  Bxg2 {[%clk 0:01:36]} 20. Kxg2 {[%clk 0:02:37]}  Nxd4 {[%clk 0:01:36]} 21. Nd5 {[%clk 0:02:37]}  Re8 {[%clk 0:01:26]} 22. c3 {[%clk 0:02:34]}  Ne6 {[%clk 0:01:23]} 23. Rf5 {[%clk 0:02:33]}  c6 {[%clk 0:01:22]} 24. Ne3 {[%clk 0:02:33]}  Rf8 {[%clk 0:01:21]} 25. Ra5 {[%clk 0:02:32]}  a6 {[%clk 0:01:21]} 26. Nc4 {[%clk 0:02:32]}  Rd8 {[%clk 0:01:17]} 27. e5 {[%clk 0:02:33]}  dxe5 {[%clk 0:01:13]} 28. Rxe5 {[%clk 0:02:34]}  Nf4+ {[%clk 0:01:12]} 29. Kf3 {[%clk 0:02:33]}  Ng6 {[%clk 0:01:11]} 30. Re6 {[%clk 0:02:32]}  Kf7 {[%clk 0:01:07]} 31. Re2 {[%clk 0:02:30]}  Rd5 {[%clk 0:01:05]} 32. b4 {[%clk 0:02:27]}  h5 {[%clk 0:01:02]} 33. Na5 {[%clk 0:02:26]}  Rd7 {[%clk 0:00:57]} 34. c4 {[%clk 0:02:23]}  Ne7 {[%clk 0:00:56]} 35. c5 {[%clk 0:02:23]}  Nd5 {[%clk 0:00:56]} 36. a3 {[%clk 0:02:21]}  g6 {[%clk 0:00:55]} 37. Nc4 {[%clk 0:02:22]}  Kf6 {[%clk 0:00:49]} 38. Nd6 {[%clk 0:02:22]}  Ne7 {[%clk 0:00:48]} 39. Ne8+ {[%clk 0:02:20]}  Kf7 {[%clk 0:00:48]} 40. Nd6+ {[%clk 0:02:20]}  Kg7 {[%clk 0:00:48]} 41. Kf4 {[%clk 0:02:19]}  Nf5 {[%clk 0:00:48]} 42. Ne8+ {[%clk 0:02:13]}  Kf7 {[%clk 0:00:47]} 43. Kg5 {[%clk 0:02:08]}  Re7 {[%clk 0:00:46]} 44. Rxe7+ {[%clk 0:02:08]}  Kxe7 {[%clk 0:00:44]} 45. Nf6 {[%clk 0:02:08]}  Nd4 {[%clk 0:00:41]} 46. Kxg6 {[%clk 0:02:08]}  h4 {[%clk 0:00:41]} 47. Ng4 {[%clk 0:02:07]}  Nc2 {[%clk 0:00:40]} 48. Kg5 {[%clk 0:02:08]}  Nxa3 {[%clk 0:00:40]} 49. Kxh4 {[%clk 0:02:08]}  Nc2 {[%clk 0:00:41]} 50. Ne3 {[%clk 0:02:08]}  Nxb4 {[%clk 0:00:41]} 51. Kg4 {[%clk 0:02:09]}  Nd3 {[%clk 0:00:41]} 52. Nc4 {[%clk 0:02:09]}  Nxc5 {[%clk 0:00:41]} 53. Kf4 {[%clk 0:02:10]}  b5 {[%clk 0:00:41]} 54. Na5 {[%clk 0:02:11]}  Kd6 {[%clk 0:00:41]} 55. Ke3 {[%clk 0:02:11]}  Kd5 {[%clk 0:00:41]} 56. Kd2 {[%clk 0:02:11]}  Ne4+ {[%clk 0:00:40]} 57. Kc2 {[%clk 0:02:11]}  c5 {[%clk 0:00:41]} 58. Kb3 {[%clk 0:02:12]}  c4+ {[%clk 0:00:41]} 59. Ka3 {[%clk 0:02:12]}  Nd6 {[%clk 0:00:39]} 60. Nb7 {[%clk 0:02:12]}  Nxb7 {[%clk 0:00:38]} 0-1